[Event "Titled Tuesday Blitz May 10 Late 2022"]
[White "Derraugh, Geordie"]
[Black "Romanchuk, Viktor"]
[WhiteFideId "2603950"]
[BlackFideId "14109271"]
[WhiteElo "2116"]
[BlackElo "2242"]
[Result "1-0"]
[Round "11"]
[TimeControl "180+1"]
[Date "2022.05.11"]
[WhiteClock "0:00:29"]
[BlackClock "0:00:30"]

1. e4 {[%clk 0:03:00]}  e6 {[%clk 0:02:59]} 2. d4 {[%clk 0:02:59]}  d5 {[%clk 0:02:59]} 3. Nd2 {[%clk 0:02:58]}  dxe4 {[%clk 0:02:59]} 4. Nxe4 {[%clk 0:02:58]}  Nd7 {[%clk 0:03:00]} 5. Nf3 {[%clk 0:02:58]}  Ngf6 {[%clk 0:03:00]} 6. Bd3 {[%clk 0:02:57]}  c5 {[%clk 0:02:59]} 7. dxc5 {[%clk 0:02:56]}  Nxe4 {[%clk 0:02:59]} 8. Bxe4 {[%clk 0:02:56]}  Nxc5 {[%clk 0:03:00]} 9. Qxd8+ {[%clk 0:02:56]}  Kxd8 {[%clk 0:03:01]} 10. Nd2 {[%clk 0:02:54]}  Nxe4 {[%clk 0:02:59]} 11. Nxe4 {[%clk 0:02:54]}  f6 {[%clk 0:03:00]} 12. Be3 {[%clk 0:02:54]}  b6 {[%clk 0:03:00]} 13. O-O-O+ {[%clk 0:02:52]}  Kc7 {[%clk 0:03:01]} 14. Nc3 {[%clk 0:02:51]}  Bd7 {[%clk 0:03:00]} 15. Bf4+ {[%clk 0:02:47]}  e5 {[%clk 0:02:59]} 16. Nd5+ {[%clk 0:02:47]}  Kc8 {[%clk 0:02:51]} 17. Be3 {[%clk 0:02:44]}  Bc6 {[%clk 0:02:48]} 18. Rd2 {[%clk 0:02:39]}  Kb7 {[%clk 0:02:43]} 19. Rhd1 {[%clk 0:02:39]}  Rd8 {[%clk 0:02:42]} 20. f3 {[%clk 0:02:23]}  h5 {[%clk 0:02:38]} 21. c4 {[%clk 0:02:16]}  Rd7 {[%clk 0:02:27]} 22. Kc2 {[%clk 0:01:54]}  Ba4+ {[%clk 0:02:02]} 23. b3 {[%clk 0:01:52]}  Bc6 {[%clk 0:02:03]} 24. Kc3 {[%clk 0:01:33]}  h4 {[%clk 0:01:29]} 25. b4 {[%clk 0:01:19]}  b5 {[%clk 0:01:10]} 26. a4 {[%clk 0:01:10]}  bxc4 {[%clk 0:00:56]} 27. b5 {[%clk 0:01:06]}  Bxd5 {[%clk 0:00:56]} 28. Rxd5 {[%clk 0:01:07]}  Rc7 {[%clk 0:00:56]} 29. Rd8 {[%clk 0:01:06]}  g6 {[%clk 0:00:51]} 30. a5 {[%clk 0:01:03]}  a6 {[%clk 0:00:50]} 31. Bb6 {[%clk 0:00:33]}  Bb4+ {[%clk 0:00:29]} 32. Kxb4 {[%clk 0:00:30]}  Rxd8 {[%clk 0:00:30]} 33. Rxd8 {[%clk 0:00:29]}  c3 {[%clk 0:00:31]} 34. Rd1 {[%clk 0:00:29]}  c2 {[%clk 0:00:28]} 35. Rc1 {[%clk 0:00:29]}  Rc8 {[%clk 0:00:29]} 36. bxa6+ {[%clk 0:00:28]}  Kxa6 {[%clk 0:00:30]} 37. Kb3 {[%clk 0:00:29]} 1-0


[Site "https://www.chess.com"]

[Event "Titled Tuesday Blitz May 10 Late 2022"]
[White "Dubov, Daniil"]
[Black "Melkumyan, Hrant"]
[WhiteFideId "24126055"]
[BlackFideId "13302485"]
[WhiteElo "2791"]
[BlackElo "2604"]
[Result "1-0"]
[Round "11"]
[TimeControl "180+1"]
[Date "2022.05.10"]
[WhiteClock "0:02:24"]
[BlackClock "0:00:20"]

1. e4 {[%clk 0:03:00]}  c6 {[%clk 0:02:59]} 2. d4 {[%clk 0:03:00]}  d5 {[%clk 0:02:57]} 3. e5 {[%clk 0:03:01]}  Bf5 {[%clk 0:02:56]} 4. Nf3 {[%clk 0:03:02]}  e6 {[%clk 0:02:55]} 5. Be2 {[%clk 0:03:03]}  Ne7 {[%clk 0:02:55]} 6. O-O {[%clk 0:03:03]}  Bg6 {[%clk 0:02:56]} 7. c4 {[%clk 0:03:04]}  Nd7 {[%clk 0:02:50]} 8. Nc3 {[%clk 0:03:03]}  dxc4 {[%clk 0:02:35]} 9. Bxc4 {[%clk 0:03:04]}  Nb6 {[%clk 0:02:26]} 10. Be2 {[%clk 0:03:02]}  Ned5 {[%clk 0:02:23]} 11. h3 {[%clk 0:03:01]}  Be7 {[%clk 0:02:23]} 12. Bd3 {[%clk 0:02:59]}  Bxd3 {[%clk 0:02:17]} 13. Qxd3 {[%clk 0:02:58]}  O-O {[%clk 0:02:17]} 14. Re1 {[%clk 0:02:58]}  a5 {[%clk 0:02:17]} 15. Ne4 {[%clk 0:02:57]}  a4 {[%clk 0:02:17]} 16. Neg5 {[%clk 0:02:54]}  g6 {[%clk 0:02:16]} 17. Qe4 {[%clk 0:02:54]}  Kg7 {[%clk 0:02:07]} 18. Qh4 {[%clk 0:02:40]}  Rh8 {[%clk 0:01:55]} 19. Qg4 {[%clk 0:02:40]}  h6 {[%clk 0:01:46]} 20. Ne4 {[%clk 0:02:40]}  Nd7 {[%clk 0:01:45]} 21. Bd2 {[%clk 0:02:38]}  Qb6 {[%clk 0:01:40]} 22. h4 {[%clk 0:02:37]}  h5 {[%clk 0:01:36]} 23. Qg3 {[%clk 0:02:37]}  Qxb2 {[%clk 0:01:18]} 24. Rab1 {[%clk 0:02:36]}  Qxa2 {[%clk 0:01:14]} 25. Rxb7 {[%clk 0:02:37]}  Rad8 {[%clk 0:01:10]} 26. Bg5 {[%clk 0:02:37]}  Qa3 {[%clk 0:01:06]} 27. Nd6 {[%clk 0:02:31]}  Bxd6 {[%clk 0:00:38]} 28. exd6 {[%clk 0:02:28]}  N5f6 {[%clk 0:00:31]} 29. Bxf6+ {[%clk 0:02:24]}  Kxf6 {[%clk 0:00:27]} 30. Rxd7 {[%clk 0:02:24]}  Kg7 {[%clk 0:00:20]} 1-0


[Site "https://www.chess.com"]

[Event "Titled Tuesday Blitz May 10 Late 2022"]
[White "Gurevich, Dmitry"]
[Black "Tomaszewski, Kacper"]
[WhiteFideId "2000407"]
[BlackFideId "1127373"]
[WhiteElo "2506"]
[BlackElo "2153"]
[Result "1/2-1/2"]
[Round "11"]
[TimeControl "180+1"]
[Date "2022.05.11"]
[WhiteClock "0:00:33"]
[BlackClock "0:00:26"]

1. d4 {[%clk 0:03:00]}  d5 {[%clk 0:02:55]} 2. c4 {[%clk 0:03:00]}  e6 {[%clk 0:02:55]} 3. Nc3 {[%clk 0:03:00]}  Nf6 {[%clk 0:02:55]} 4. Nf3 {[%clk 0:02:59]}  c5 {[%clk 0:02:55]} 5. cxd5 {[%clk 0:02:58]}  Nxd5 {[%clk 0:02:56]} 6. e4 {[%clk 0:02:57]}  Nxc3 {[%clk 0:02:56]} 7. bxc3 {[%clk 0:02:58]}  cxd4 {[%clk 0:02:57]} 8. cxd4 {[%clk 0:02:58]}  Bb4+ {[%clk 0:02:57]} 9. Bd2 {[%clk 0:02:58]}  Bxd2+ {[%clk 0:02:58]} 10. Qxd2 {[%clk 0:02:59]}  O-O {[%clk 0:02:58]} 11. Bc4 {[%clk 0:02:59]}  Nd7 {[%clk 0:02:59]} 12. O-O {[%clk 0:02:58]}  b6 {[%clk 0:03:00]} 13. Rad1 {[%clk 0:02:47]}  Bb7 {[%clk 0:02:58]} 14. Rfe1 {[%clk 0:02:47]}  Rc8 {[%clk 0:02:58]} 15. Bd3 {[%clk 0:02:43]}  h6 {[%clk 0:02:58]} 16. a4 {[%clk 0:02:38]}  Qc7 {[%clk 0:02:55]} 17. a5 {[%clk 0:02:36]}  Qc3 {[%clk 0:02:53]} 18. axb6 {[%clk 0:02:34]}  Qxd2 {[%clk 0:02:49]} 19. Rxd2 {[%clk 0:02:31]}  axb6 {[%clk 0:02:45]} 20. Rb2 {[%clk 0:02:21]}  Rc3 {[%clk 0:02:41]} 21. Bb1 {[%clk 0:02:15]}  Rfc8 {[%clk 0:02:39]} 22. h3 {[%clk 0:02:13]}  Rc1 {[%clk 0:02:26]} 23. Rxc1 {[%clk 0:02:13]}  Rxc1+ {[%clk 0:02:27]} 24. Kh2 {[%clk 0:02:13]}  Nf6 {[%clk 0:02:21]} 25. d5 {[%clk 0:01:48]}  exd5 {[%clk 0:02:08]} 26. Rxb6 {[%clk 0:01:47]}  Rc7 {[%clk 0:01:38]} 27. e5 {[%clk 0:01:45]}  Ne4 {[%clk 0:01:29]} 28. Rb2 {[%clk 0:01:43]}  g6 {[%clk 0:01:19]} 29. Nd4 {[%clk 0:01:42]}  Nc3 {[%clk 0:01:16]} 30. Bd3 {[%clk 0:01:34]}  Na4 {[%clk 0:01:11]} 31. Rb4 {[%clk 0:01:32]}  Nc5 {[%clk 0:01:11]} 32. Bb1 {[%clk 0:01:27]}  Bc8 {[%clk 0:01:08]} 33. f4 {[%clk 0:01:24]}  Ne6 {[%clk 0:01:04]} 34. Nxe6 {[%clk 0:01:08]}  Bxe6 {[%clk 0:01:05]} 35. g4 {[%clk 0:01:07]}  Rc4 {[%clk 0:00:40]} 36. Rb8+ {[%clk 0:01:04]}  Rc8 {[%clk 0:00:40]} 37. Rxc8+ {[%clk 0:01:04]}  Bxc8 {[%clk 0:00:40]} 38. Kg3 {[%clk 0:00:53]}  Kf8 {[%clk 0:00:36]} 39. Kf3 {[%clk 0:00:47]}  Ke7 {[%clk 0:00:36]} 40. Ke3 {[%clk 0:00:46]}  h5 {[%clk 0:00:35]} 41. gxh5 {[%clk 0:00:43]}  gxh5 {[%clk 0:00:32]} 42. f5 {[%clk 0:00:42]}  f6 {[%clk 0:00:28]} 43. e6 {[%clk 0:00:41]}  Bxe6 {[%clk 0:00:28]} 44. fxe6 {[%clk 0:00:40]}  Kxe6 {[%clk 0:00:29]} 45. Kf4 {[%clk 0:00:39]}  d4 {[%clk 0:00:29]} 46. Bd3 {[%clk 0:00:39]}  Kf7 {[%clk 0:00:28]} 47. Kf5 {[%clk 0:00:39]}  Kg7 {[%clk 0:00:28]} 48. Ke6 {[%clk 0:00:37]}  h4 {[%clk 0:00:28]} 49. Bf5 {[%clk 0:00:36]}  Kh8 {[%clk 0:00:25]} 50. Kf7 {[%clk 0:00:35]}  d3 {[%clk 0:00:25]} 51. Bxd3 {[%clk 0:00:34]}  f5 {[%clk 0:00:26]} 52. Bxf5 {[%clk 0:00:33]} 1/2-1/2


[Site "https://www.chess.com"]

[Event "Titled Tuesday Blitz May 10 Late 2022"]
[White "Hakobyan, Aram"]
[Black "Sjugirov, Sanan"]
[WhiteFideId "13306677"]
[BlackFideId "4189302"]
[WhiteElo "2557"]
[BlackElo "2602"]
[Result "0-1"]
[Round "11"]
[TimeControl "180+1"]
[Date "2022.05.10"]
[WhiteClock "0:00:02"]
[BlackClock "0:00:12"]

1. d4 {[%clk 0:03:00]}  Nf6 {[%clk 0:02:59]} 2. c4 {[%clk 0:03:00]}  e6 {[%clk 0:03:00]} 3. a3 {[%clk 0:03:00]}  b6 {[%clk 0:02:57]} 4. Nc3 {[%clk 0:03:00]}  Bb7 {[%clk 0:02:57]} 5. d5 {[%clk 0:03:01]}  Bd6 {[%clk 0:02:14]} 6. Nf3 {[%clk 0:03:00]}  O-O {[%clk 0:02:13]} 7. e4 {[%clk 0:03:01]}  exd5 {[%clk 0:02:10]} 8. exd5 {[%clk 0:03:01]}  c6 {[%clk 0:02:09]} 9. Be2 {[%clk 0:02:56]}  cxd5 {[%clk 0:02:09]} 10. cxd5 {[%clk 0:02:57]}  h6 {[%clk 0:02:06]} 11. O-O {[%clk 0:02:56]}  Re8 {[%clk 0:02:01]} 12. Nd4 {[%clk 0:02:42]}  Na6 {[%clk 0:01:56]} 13. Nf5 {[%clk 0:02:24]}  Be5 {[%clk 0:01:55]} 14. Bf3 {[%clk 0:02:25]}  Nc5 {[%clk 0:01:49]} 15. Re1 {[%clk 0:02:03]}  d6 {[%clk 0:01:40]} 16. Be3 {[%clk 0:01:50]}  Qd7 {[%clk 0:01:40]} 17. Qc2 {[%clk 0:01:26]}  Bxc3 {[%clk 0:01:37]} 18. bxc3 {[%clk 0:01:24]}  Nce4 {[%clk 0:01:37]} 19. Ng3 {[%clk 0:00:56]}  Nxg3 {[%clk 0:01:29]} 20. hxg3 {[%clk 0:00:57]}  Bxd5 {[%clk 0:01:30]} 21. Be2 {[%clk 0:00:54]}  Bb7 {[%clk 0:01:24]} 22. Bf1 {[%clk 0:00:52]}  Rac8 {[%clk 0:01:19]} 23. Bd4 {[%clk 0:00:51]}  Ne4 {[%clk 0:01:15]} 24. a4 {[%clk 0:00:51]}  Nc5 {[%clk 0:01:13]} 25. Rxe8+ {[%clk 0:00:48]}  Rxe8 {[%clk 0:01:12]} 26. a5 {[%clk 0:00:48]}  b5 {[%clk 0:00:57]} 27. a6 {[%clk 0:00:48]}  Nxa6 {[%clk 0:00:52]} 28. Qb1 {[%clk 0:00:38]}  Nc7 {[%clk 0:00:49]} 29. Rxa7 {[%clk 0:00:37]}  Qc6 {[%clk 0:00:49]} 30. c4 {[%clk 0:00:19]}  b4 {[%clk 0:00:42]} 31. Qxb4 {[%clk 0:00:18]}  Ne6 {[%clk 0:00:42]} 32. Bxg7 {[%clk 0:00:12]}  Kxg7 {[%clk 0:00:22]} 33. Rxb7 {[%clk 0:00:12]}  Qc5 {[%clk 0:00:21]} 34. Qc3+ {[%clk 0:00:11]}  Qd4 {[%clk 0:00:19]} 35. Qxd4+ {[%clk 0:00:05]}  Nxd4 {[%clk 0:00:20]} 36. f3 {[%clk 0:00:05]}  Ra8 {[%clk 0:00:19]} 37. Rd7 {[%clk 0:00:04]}  Nf5 {[%clk 0:00:18]} 38. g4 {[%clk 0:00:04]}  Ne3 {[%clk 0:00:18]} 39. Bd3 {[%clk 0:00:05]}  Ra6 {[%clk 0:00:15]} 40. c5 {[%clk 0:00:05]}  Ra1+ {[%clk 0:00:14]} 41. Kf2 {[%clk 0:00:06]}  Nd1+ {[%clk 0:00:15]} 42. Kg3 {[%clk 0:00:05]}  dxc5 {[%clk 0:00:15]} 43. Bc4 {[%clk 0:00:06]}  Ne3 {[%clk 0:00:15]} 44. Bxf7 {[%clk 0:00:06]}  Kf6 {[%clk 0:00:16]} 45. f4 {[%clk 0:00:03]}  Ra3 {[%clk 0:00:14]} 46. Kf3 {[%clk 0:00:01]}  Nf5+ {[%clk 0:00:13]} 47. Ke4 {[%clk 0:00:02]}  Ng3+ {[%clk 0:00:11]} 48. Kd5 {[%clk 0:00:02]}  Rd3+ {[%clk 0:00:11]} 49. Kc6 {[%clk 0:00:02]}  Rxd7 {[%clk 0:00:11]} 50. Kxd7 {[%clk 0:00:02]}  Kxf7 {[%clk 0:00:12]} 0-1


[Site "https://www.chess.com"]

[Event "Titled Tuesday Blitz May 10 Late 2022"]
[White "Hnydiuk, Aleksander"]
[Black "Postny, Evgeny"]
[WhiteFideId "1109057"]
[BlackFideId "2804344"]
[WhiteElo "2374"]
[BlackElo "2500"]
[Result "0-1"]
[Round "11"]
[TimeControl "180+1"]
[Date "2022.05.10"]
[WhiteClock "0:00:08"]
[BlackClock "0:00:09"]

1. c4 {[%clk 0:03:00]}  f5 {[%clk 0:02:23]} 2. d4 {[%clk 0:02:57]}  e6 {[%clk 0:02:22]} 3. g3 {[%clk 0:02:56]}  Nf6 {[%clk 0:02:22]} 4. Bg2 {[%clk 0:02:56]}  Be7 {[%clk 0:02:23]} 5. Nf3 {[%clk 0:02:54]}  O-O {[%clk 0:02:23]} 6. O-O {[%clk 0:02:54]}  d6 {[%clk 0:02:24]} 7. Nc3 {[%clk 0:02:54]}  Qe8 {[%clk 0:02:25]} 8. Re1 {[%clk 0:02:53]}  Nc6 {[%clk 0:02:22]} 9. d5 {[%clk 0:02:46]}  exd5 {[%clk 0:02:18]} 10. cxd5 {[%clk 0:02:45]}  Ne5 {[%clk 0:02:18]} 11. Nd4 {[%clk 0:02:42]}  Kh8 {[%clk 0:02:11]} 12. Qc2 {[%clk 0:02:37]}  g6 {[%clk 0:02:11]} 13. Ncb5 {[%clk 0:02:32]}  Qf7 {[%clk 0:01:52]} 14. Nxc7 {[%clk 0:02:27]}  Rb8 {[%clk 0:01:52]} 15. Nce6 {[%clk 0:02:24]}  Rg8 {[%clk 0:01:51]} 16. Bg5 {[%clk 0:02:17]}  Bd7 {[%clk 0:01:50]} 17. Rac1 {[%clk 0:02:12]}  Rgc8 {[%clk 0:01:45]} 18. Qb3 {[%clk 0:02:08]}  Ne4 {[%clk 0:01:45]} 19. Bxe7 {[%clk 0:02:05]}  Qxe7 {[%clk 0:01:46]} 20. Rxc8+ {[%clk 0:01:59]}  Bxc8 {[%clk 0:01:44]} 21. Rc1 {[%clk 0:01:51]}  Nc5 {[%clk 0:01:37]} 22. Qe3 {[%clk 0:01:47]}  Bxe6 {[%clk 0:01:29]} 23. dxe6 {[%clk 0:01:38]}  Ng4 {[%clk 0:01:20]} 24. Qc3 {[%clk 0:01:32]}  Nf6 {[%clk 0:01:08]} 25. Qe3 {[%clk 0:00:54]}  a5 {[%clk 0:01:03]} 26. Qc3 {[%clk 0:00:47]}  Nxe6 {[%clk 0:00:54]} 27. Qe3 {[%clk 0:00:31]}  Re8 {[%clk 0:00:52]} 28. Nxe6 {[%clk 0:00:30]}  Qxe6 {[%clk 0:00:52]} 29. Qxe6 {[%clk 0:00:29]}  Rxe6 {[%clk 0:00:53]} 30. Rc8+ {[%clk 0:00:29]}  Kg7 {[%clk 0:00:54]} 31. Rc7+ {[%clk 0:00:29]}  Kh6 {[%clk 0:00:54]} 32. e3 {[%clk 0:00:29]}  b6 {[%clk 0:00:44]} 33. Rc6 {[%clk 0:00:25]}  Nd7 {[%clk 0:00:43]} 34. Bd5 {[%clk 0:00:25]}  Rf6 {[%clk 0:00:40]} 35. Kg2 {[%clk 0:00:23]}  g5 {[%clk 0:00:38]} 36. f4 {[%clk 0:00:19]}  Kg6 {[%clk 0:00:34]} 37. Kf3 {[%clk 0:00:18]}  h6 {[%clk 0:00:32]} 38. Rc7 {[%clk 0:00:17]}  Nc5 {[%clk 0:00:31]} 39. Bg8 {[%clk 0:00:15]}  Rf8 {[%clk 0:00:31]} 40. Bd5 {[%clk 0:00:10]}  Nd3 {[%clk 0:00:23]} 41. Rc6 {[%clk 0:00:07]}  Rd8 {[%clk 0:00:15]} 42. Rxb6 {[%clk 0:00:06]}  Nb4 {[%clk 0:00:14]} 43. Bb3 {[%clk 0:00:05]}  g4+ {[%clk 0:00:12]} 44. Ke2 {[%clk 0:00:05]}  Rc8 {[%clk 0:00:05]} 45. Rxd6+ {[%clk 0:00:04]}  Kg7 {[%clk 0:00:05]} 46. Rd7+ {[%clk 0:00:04]}  Kf6 {[%clk 0:00:04]} 47. Kd2 {[%clk 0:00:04]}  a4 {[%clk 0:00:03]} 48. Bxa4 {[%clk 0:00:04]}  Nxa2 {[%clk 0:00:03]} 49. Bb3 {[%clk 0:00:04]}  Nc1 {[%clk 0:00:03]} 50. Bc2 {[%clk 0:00:03]}  Ne2 {[%clk 0:00:03]} 51. Rd6+ {[%clk 0:00:02]}  Ke7 {[%clk 0:00:03]} 52. Rd5 {[%clk 0:00:01]}  Ng1 {[%clk 0:00:03]} 53. Re5+ {[%clk 0:00:02]}  Kd6 {[%clk 0:00:02]} 54. Rxf5 {[%clk 0:00:02]}  Nf3+ {[%clk 0:00:03]} 55. Kd1 {[%clk 0:00:02]}  Nxh2 {[%clk 0:00:03]} 56. Rf6+ {[%clk 0:00:02]}  Ke7 {[%clk 0:00:03]} 57. Rxh6 {[%clk 0:00:03]}  Nf1 {[%clk 0:00:03]} 58. Bf5 {[%clk 0:00:02]}  Nxe3+ {[%clk 0:00:03]} 59. Ke2 {[%clk 0:00:03]}  Nxf5 {[%clk 0:00:04]} 60. Rh7+ {[%clk 0:00:04]}  Kf6 {[%clk 0:00:04]} 61. Kd3 {[%clk 0:00:04]}  Rd8+ {[%clk 0:00:04]} 62. Kc3 {[%clk 0:00:04]}  Re8 {[%clk 0:00:04]} 63. Rb7 {[%clk 0:00:03]}  Re3+ {[%clk 0:00:03]} 64. Kd2 {[%clk 0:00:03]}  Rxg3 {[%clk 0:00:04]} 65. Rb6+ {[%clk 0:00:03]}  Ke7 {[%clk 0:00:05]} 66. b4 {[%clk 0:00:04]}  Rg2+ {[%clk 0:00:04]} 67. Ke1 {[%clk 0:00:03]}  g3 {[%clk 0:00:04]} 68. Rg6 {[%clk 0:00:02]}  Kf7 {[%clk 0:00:04]} 69. Rg5 {[%clk 0:00:02]}  Kf6 {[%clk 0:00:04]} 70. b5 {[%clk 0:00:02]}  Rb2 {[%clk 0:00:04]} 71. b6 {[%clk 0:00:03]}  Rxb6 {[%clk 0:00:04]} 72. Kf1 {[%clk 0:00:03]}  Rb2 {[%clk 0:00:04]} 73. Kg1 {[%clk 0:00:03]}  Ra2 {[%clk 0:00:03]} 74. Kf1 {[%clk 0:00:04]}  Rb2 {[%clk 0:00:02]} 75. Kg1 {[%clk 0:00:04]}  Nd4 {[%clk 0:00:03]} 76. Rxg3 {[%clk 0:00:03]}  Ne2+ {[%clk 0:00:03]} 77. Kf1 {[%clk 0:00:03]}  Nxg3+ {[%clk 0:00:04]} 78. Ke1 {[%clk 0:00:03]}  Kf5 {[%clk 0:00:04]} 79. Kd1 {[%clk 0:00:02]}  Kxf4 {[%clk 0:00:04]} 80. Kc1 {[%clk 0:00:03]}  Rh2 {[%clk 0:00:04]} 81. Kb1 {[%clk 0:00:04]}  Ke4 {[%clk 0:00:05]} 82. Ka1 {[%clk 0:00:05]}  Kd4 {[%clk 0:00:06]} 83. Kb1 {[%clk 0:00:05]}  Kc4 {[%clk 0:00:07]} 84. Ka1 {[%clk 0:00:06]}  Kb4 {[%clk 0:00:07]} 85. Kb1 {[%clk 0:00:07]}  Ka4 {[%clk 0:00:08]} 86. Ka1 {[%clk 0:00:07]}  Nf5 {[%clk 0:00:09]} 87. Kb1 {[%clk 0:00:08]}  Nd6 {[%clk 0:00:09]} 0-1


[Site "https://www.chess.com"]

[Event "Titled Tuesday Blitz May 10 Late 2022"]
[White "Janaszak, Dawid"]
[Black "Adewumi, Tanitoluwa"]
[WhiteFideId "1119206"]
[BlackFideId "30966396"]
[WhiteElo "2657"]
[BlackElo "2508"]
[Result "1-0"]
[Round "11"]
[TimeControl "180+1"]
[Date "2022.05.11"]
[WhiteClock "0:00:13"]
[BlackClock "0:00:04"]

1. d4 {[%clk 0:03:00]}  Nf6 {[%clk 0:02:49]} 2. Nf3 {[%clk 0:03:00]}  d5 {[%clk 0:02:49]} 3. Bf4 {[%clk 0:02:58]}  Bf5 {[%clk 0:02:47]} 4. e3 {[%clk 0:02:55]}  e6 {[%clk 0:02:47]} 5. c4 {[%clk 0:02:55]}  Bd6 {[%clk 0:02:47]} 6. Bxd6 {[%clk 0:02:50]}  Qxd6 {[%clk 0:02:44]} 7. Nc3 {[%clk 0:02:46]}  O-O {[%clk 0:02:40]} 8. c5 {[%clk 0:02:42]}  Qe7 {[%clk 0:02:11]} 9. Bd3 {[%clk 0:02:37]}  Bxd3 {[%clk 0:01:55]} 10. Qxd3 {[%clk 0:02:38]}  c6 {[%clk 0:01:56]} 11. O-O {[%clk 0:02:37]}  Nbd7 {[%clk 0:01:56]} 12. e4 {[%clk 0:02:34]}  dxe4 {[%clk 0:01:50]} 13. Nxe4 {[%clk 0:02:34]}  Nxe4 {[%clk 0:01:51]} 14. Qxe4 {[%clk 0:02:34]}  Nf6 {[%clk 0:01:51]} 15. Qe3 {[%clk 0:02:26]}  Rad8 {[%clk 0:01:50]} 16. Rfd1 {[%clk 0:02:23]}  Rd5 {[%clk 0:01:49]} 17. b4 {[%clk 0:02:20]}  Rfd8 {[%clk 0:01:49]} 18. Re1 {[%clk 0:02:19]}  Nd7 {[%clk 0:01:40]} 19. h3 {[%clk 0:02:15]}  Nf8 {[%clk 0:01:38]} 20. a4 {[%clk 0:02:12]}  Ng6 {[%clk 0:01:38]} 21. b5 {[%clk 0:02:09]}  Qf6 {[%clk 0:01:29]} 22. bxc6 {[%clk 0:02:06]}  bxc6 {[%clk 0:01:27]} 23. Rab1 {[%clk 0:02:05]}  Ne7 {[%clk 0:01:23]} 24. g4 {[%clk 0:01:40]}  Ng6 {[%clk 0:01:20]} 25. Rb7 {[%clk 0:01:32]}  Nf4 {[%clk 0:01:16]} 26. Ne5 {[%clk 0:01:23]}  Rxd4 {[%clk 0:01:15]} 27. Rxf7 {[%clk 0:01:22]}  Qh6 {[%clk 0:01:15]} 28. Kh2 {[%clk 0:00:45]}  R8d5 {[%clk 0:01:04]} 29. Rxf4 {[%clk 0:00:18]}  Rxf4 {[%clk 0:00:27]} 30. Nxc6 {[%clk 0:00:16]}  Kf8 {[%clk 0:00:11]} 31. Rb1 {[%clk 0:00:16]}  Qf6 {[%clk 0:00:06]} 32. Rb8+ {[%clk 0:00:15]}  Kf7 {[%clk 0:00:07]} 33. Rb7+ {[%clk 0:00:15]}  Kg6 {[%clk 0:00:06]} 34. Ne7+ {[%clk 0:00:14]}  Kh6 {[%clk 0:00:03]} 35. Ng8+ {[%clk 0:00:14]}  Kg5 {[%clk 0:00:02]} 36. Nxf6 {[%clk 0:00:14]}  gxf6 {[%clk 0:00:02]} 37. Rg7+ {[%clk 0:00:13]}  Kh6 {[%clk 0:00:03]} 38. Qxf4+ {[%clk 0:00:13]}  Kxg7 {[%clk 0:00:03]} 39. c6 {[%clk 0:00:13]}  Rc5 {[%clk 0:00:04]} 40. c7 {[%clk 0:00:13]} 1-0


[Site "https://www.chess.com"]

[Event "Titled Tuesday Blitz May 10 Late 2022"]
[White "Jeet, Jain"]
[Black "Nozdrachev, Leonid"]
[WhiteFideId "5073022"]
[BlackFideId "24113433"]
[WhiteElo "2028"]
[BlackElo "2255"]
[Result "1-0"]
[Round "11"]
[TimeControl "180+1"]
[Date "2022.05.11"]
[WhiteClock "0:01:43"]
[BlackClock "0:00:37"]

1. Nf3 {[%clk 0:03:00]}  Nc6 {[%clk 0:02:56]} 2. d4 {[%clk 0:02:56]}  d6 {[%clk 0:02:52]} 3. e4 {[%clk 0:02:55]}  e5 {[%clk 0:02:52]} 4. dxe5 {[%clk 0:02:55]}  Nxe5 {[%clk 0:02:53]} 5. Nd4 {[%clk 0:02:50]}  Nf6 {[%clk 0:02:51]} 6. Nc3 {[%clk 0:02:50]}  d5 {[%clk 0:02:46]} 7. f4 {[%clk 0:02:47]}  Nc6 {[%clk 0:02:40]} 8. e5 {[%clk 0:02:41]}  Ne4 {[%clk 0:02:34]} 9. Nxc6 {[%clk 0:02:38]}  Nxc3 {[%clk 0:02:31]} 10. Nxd8 {[%clk 0:02:34]}  Nxd1 {[%clk 0:02:30]} 11. Nxf7 {[%clk 0:02:35]}  Kxf7 {[%clk 0:02:28]} 12. Kxd1 {[%clk 0:02:34]}  Bf5 {[%clk 0:02:23]} 13. Bd3 {[%clk 0:02:34]}  Ke6 {[%clk 0:02:23]} 14. Be3 {[%clk 0:02:24]}  c5 {[%clk 0:02:22]} 15. Ke2 {[%clk 0:02:21]}  h5 {[%clk 0:02:19]} 16. g3 {[%clk 0:02:17]}  Rd8 {[%clk 0:02:11]} 17. h3 {[%clk 0:02:16]}  d4 {[%clk 0:02:07]} 18. Bd2 {[%clk 0:02:14]}  a6 {[%clk 0:02:03]} 19. g4 {[%clk 0:02:11]}  Bxd3+ {[%clk 0:01:54]} 20. cxd3 {[%clk 0:02:10]}  g5 {[%clk 0:01:49]} 21. f5+ {[%clk 0:02:04]}  Kxe5 {[%clk 0:01:47]} 22. Bxg5 {[%clk 0:02:05]}  Re8 {[%clk 0:01:46]} 23. Kf3 {[%clk 0:02:04]}  hxg4+ {[%clk 0:01:39]} 24. hxg4 {[%clk 0:02:03]}  Rxh1 {[%clk 0:01:37]} 25. Rxh1 {[%clk 0:02:04]}  Kd5 {[%clk 0:01:34]} 26. Rh8 {[%clk 0:02:01]}  b5 {[%clk 0:01:12]} 27. Bh6 {[%clk 0:01:57]}  c4 {[%clk 0:01:04]} 28. dxc4+ {[%clk 0:01:56]}  bxc4 {[%clk 0:01:05]} 29. Rxf8 {[%clk 0:01:56]}  Re1 {[%clk 0:01:00]} 30. f6 {[%clk 0:01:48]}  d3 {[%clk 0:00:50]} 31. f7 {[%clk 0:01:45]}  Rf1+ {[%clk 0:00:47]} 32. Kg2 {[%clk 0:01:44]}  Rf6 {[%clk 0:00:37]} 33. Rd8+ {[%clk 0:01:43]} 1-0


[Site "https://www.chess.com"]

[Event "Titled Tuesday Blitz May 10 Late 2022"]
[White "Karttunen, Mika"]
[Black "Fishbein, Alexander"]
[WhiteFideId "502081"]
[BlackFideId "2000377"]
[WhiteElo "2343"]
[BlackElo "2442"]
[Result "1-0"]
[Round "11"]
[TimeControl "180+1"]
[Date "2022.05.10"]
[WhiteClock "0:00:13"]
[BlackClock "0:00:43"]

1. e4 {[%clk 0:03:00]}  c5 {[%clk 0:02:58]} 2. Nf3 {[%clk 0:03:00]}  d6 {[%clk 0:02:58]} 3. d4 {[%clk 0:03:01]}  cxd4 {[%clk 0:02:59]} 4. Nxd4 {[%clk 0:03:02]}  Nf6 {[%clk 0:02:59]} 5. Nc3 {[%clk 0:03:02]}  Nc6 {[%clk 0:02:59]} 6. Bc4 {[%clk 0:03:00]}  e6 {[%clk 0:02:59]} 7. Bb3 {[%clk 0:02:58]}  a6 {[%clk 0:02:59]} 8. Be3 {[%clk 0:02:58]}  Be7 {[%clk 0:02:59]} 9. Qe2 {[%clk 0:02:57]}  Qc7 {[%clk 0:02:58]} 10. O-O-O {[%clk 0:02:57]}  Na5 {[%clk 0:02:58]} 11. g4 {[%clk 0:02:53]}  b5 {[%clk 0:02:57]} 12. g5 {[%clk 0:02:51]}  Nxb3+ {[%clk 0:02:57]} 13. axb3 {[%clk 0:02:51]}  Nd7 {[%clk 0:02:57]} 14. h4 {[%clk 0:02:36]}  b4 {[%clk 0:02:56]} 15. Na4 {[%clk 0:02:04]}  Nc5 {[%clk 0:02:50]} 16. Qc4 {[%clk 0:01:34]}  Bd7 {[%clk 0:02:40]} 17. Kb1 {[%clk 0:01:14]}  Qb7 {[%clk 0:02:38]} 18. e5 {[%clk 0:00:53]}  Bb5 {[%clk 0:02:13]} 19. Qxb4 {[%clk 0:00:51]}  Nxa4 {[%clk 0:02:10]} 20. exd6 {[%clk 0:00:45]}  Bd8 {[%clk 0:01:43]} 21. bxa4 {[%clk 0:00:41]}  O-O {[%clk 0:01:30]} 22. axb5 {[%clk 0:00:36]}  axb5 {[%clk 0:01:29]} 23. Qxb5 {[%clk 0:00:22]}  Qa7 {[%clk 0:01:24]} 24. c3 {[%clk 0:00:20]}  Qa2+ {[%clk 0:01:23]} 25. Kc2 {[%clk 0:00:20]}  Ra5 {[%clk 0:01:11]} 26. Ra1 {[%clk 0:00:17]}  Rxb5 {[%clk 0:00:59]} 27. Rxa2 {[%clk 0:00:16]}  Rd5 {[%clk 0:01:00]} 28. Ra6 {[%clk 0:00:16]}  h6 {[%clk 0:00:56]} 29. c4 {[%clk 0:00:16]}  Re5 {[%clk 0:00:54]} 30. Nc6 {[%clk 0:00:15]}  Re4 {[%clk 0:00:53]} 31. b3 {[%clk 0:00:14]}  hxg5 {[%clk 0:00:48]} 32. hxg5 {[%clk 0:00:14]}  f5 {[%clk 0:00:47]} 33. Ra8 {[%clk 0:00:14]}  Bxg5 {[%clk 0:00:42]} 34. Rxf8+ {[%clk 0:00:13]}  Kxf8 {[%clk 0:00:43]} 35. Bxg5 {[%clk 0:00:13]} 1-0


[Site "https://www.chess.com"]